fUST/lending_fUST_20250624
["ID","MTS","AMOUNT","RATE_DAILY","PERIOD"]
[367312771,1750745433355,-460.0,0.00019178,2]
[367312772,1750745433364,-258.78733364,0.00019178,2]
[367312773,1750745433373,-460.0,0.00019178,2]
[367312774,1750745433382,-460.0,0.00019178,2]
[367312775,1750745433391,-460.0,0.00019178,2]
[367312776,1750745433401,-460.0,0.00019178,2]
[367312777,1750745433411,-460.0,0.00019178,2]
[367312778,1750745433420,-460.0,0.00019178,2]
[367312779,1750745433430,-460.0,0.00019178,2]
[367312780,1750745433438,-460.0,0.00019178,2]
[367312781,1750745433448,-460.0,0.00019178,2]
[367312782,1750745433457,-544.2,0.00019178,2]
[367312783,1750745433466,-460.0,0.00019178,2]
[367312784,1750745433476,-460.0,0.00019178,2]
[367312785,1750745433485,-431.24577498,0.00019178,2]
[367312786,1750745433495,-460.0,0.00019178,2]
[367312787,1750745433504,-460.0,0.00019178,2]
[367312788,1750745433514,-460.0,0.00019178,2]
[367312789,1750745433524,-460.0,0.00019178,2]
[367312790,1750745433533,-460.0,0.00019178,2]
[367312791,1750745433543,-460.0,0.00019178,2]
[367312792,1750745433552,-460.0,0.00019178,2]
[367312793,1750745433561,-460.0,0.00019178,2]
[367312794,1750745433570,-555.98,0.00019178,2]
[367312795,1750745433579,-460.0,0.00019178,2]
[367312796,1750745433588,-460.0,0.00019178,2]
[367312797,1750745433598,-460.0,0.00019178,2]
[367312798,1750745433607,-430.0,0.00019178,2]
[367312799,1750745433616,-460.0,0.00019178,2]
[367312800,1750745433625,-460.0,0.00019178,2]
[367312801,1750745433634,-460.0,0.00019178,2]
[367312802,1750745433644,-460.0,0.00019178,2]
[367312803,1750745433653,-462.30106275,0.00019178,2]
[367312804,1750745433663,-460.0,0.00019178,2]
[367312805,1750745433672,-460.0,0.00019178,2]
[367312806,1750745433682,-460.0,0.00019178,2]
[367312807,1750745433691,-589.55,0.00019178,2]
[367312808,1750745433701,-460.0,0.00019178,2]
[367312809,1750745433710,-460.0,0.00019178,2]
[367312810,1750745433720,-460.0,0.00019178,2]
[367312811,1750745433729,-460.0,0.00019178,2]
[367312812,1750745433740,-460.0,0.00019178,2]
[367312813,1750745433751,-416.08000112,0.00019178,2]
[367312814,1750745433760,-460.0,0.00019178,2]
[367312815,1750745433770,-460.0,0.00019178,2]
[367312816,1750745433779,-460.0,0.00019178,2]
[367312817,1750745433788,-460.0,0.00019178,2]
[367312818,1750745433797,-574.23,0.00019178,2]
[367312819,1750745433807,-460.0,0.00019178,2]
[367312820,1750745433816,-460.0,0.00019178,2]
[367312821,1750745433825,-419.22318209,0.00019178,2]
[367312822,1750745433835,-460.0,0.00019178,2]
[367312823,1750745433844,-460.0,0.00019178,2]
[367312824,1750745433853,-478.87,0.00019178,2]
[367312825,1750745433862,-460.0,0.00019178,2]
[367312826,1750745433871,-460.0,0.00019178,2]
[367312827,1750745433881,-460.0,0.00019178,2]
[367312828,1750745433890,-1794.97,0.00019178,2]
[367312829,1750745433899,-460.0,0.00019178,2]
[367312830,1750745433908,-788.21,0.00019178,2]
[367312831,1750745433918,-1454.52,0.00019178,2]
[367312832,1750745433927,-460.0,0.00019178,2]
[367312833,1750745433936,-460.0,0.00019178,2]
[367312834,1750745433945,-501.13722506,0.00019178,2]
[367312835,1750745433954,-638.75,0.00019178,2]
[367312836,1750745433963,-594.77,0.00019178,2]
[367312837,1750745433972,-460.0,0.00019178,2]
[367312838,1750745433982,-460.0,0.00019178,2]
[367312839,1750745433991,-460.0,0.00019178,2]
[367312840,1750745434000,-460.0,0.00019178,2]
[367312841,1750745434010,-546.41,0.00019178,2]
[367312842,1750745434019,-460.0,0.00019178,2]
[367312843,1750745434029,-460.0,0.00019178,2]
[367312844,1750745434038,-1609.04,0.00019178,2]
[367312845,1750745434048,-460.0,0.00019178,2]
[367312846,1750745434057,-460.0,0.00019178,2]
[367312847,1750745434067,-460.0,0.00019178,2]
[367312848,1750745434076,-460.0,0.00019178,2]
[367312849,1750745434085,-460.0,0.00019178,2]
[367312850,1750745434094,-460.0,0.00019178,2]
[367312851,1750745434104,-583.13,0.00019178,2]
[367312852,1750745434113,-460.0,0.00019178,2]
[367312853,1750745434122,-1629.07,0.00019178,2]
[367312854,1750745434131,-460.0,0.00019178,2]
[367312855,1750745434141,-460.0,0.00019178,2]
[367312856,1750745434150,-423.86481928,0.00019178,2]
[367312857,1750745434159,-460.0,0.00019178,2]
[367312858,1750745434168,-396.70137211,0.00019178,2]
[367312859,1750745434177,-460.0,0.00019178,2]
[367312860,1750745434186,-460.0,0.00019178,2]
[367312861,1750745434195,-1379.72,0.00019178,2]
[367312862,1750745434204,-460.0,0.00019178,2]
[367312863,1750745434213,-460.0,0.00019178,2]
[367312864,1750745434223,-455.42580867,0.00019178,2]
[367312865,1750745434232,-575.12,0.00019178,2]
[367312866,1750745434242,-460.0,0.00019178,2]
[367312867,1750745434252,-460.0,0.00019178,2]
[367312868,1750745434262,-712.39,0.00019178,2]
[367312869,1750745434273,-460.0,0.00019178,2]
[367312870,1750745434282,-158.4,0.00019178,2]
[367312871,1750745434292,-1318.93,0.00019178,2]
[367312872,1750745434301,-460.0,0.00019178,2]
[367312873,1750745434311,-1635.87,0.00019178,2]
[367312874,1750745434321,-655.9,0.00019178,2]
[367312875,1750745434330,-1218.31,0.00019178,2]
[367312876,1750745434340,-981.87,0.00019178,2]
[367312877,1750745434350,-677.35,0.00019178,2]
[367312878,1750745434360,-1632.49,0.00019178,2]
[367312879,1750745434370,-662.24,0.00019178,2]
[367312880,1750745434379,-2385.17,0.00019178,2]
[367312881,1750745434389,-687.59,0.00019178,2]
[367312882,1750745434399,-460.0,0.00019178,2]
[367312883,1750745434408,-553.43,0.00019178,2]
[367312884,1750745434418,-460.0,0.00019178,2]
[367312885,1750745434427,-460.0,0.00019178,2]
[367312886,1750745434436,-460.0,0.00019178,2]
[367312887,1750745434446,-53.43961461,0.00019178,2]
[367312888,1750745437242,177.32,0.00018192,2]
[367312939,1750745437904,-589.57243154,0.00019145,2]
[367312941,1750745437913,-589.57243154,0.00019145,2]
[367312943,1750745437923,-589.57243154,0.00019145,2]
[367312945,1750745437932,-589.57243154,0.00019145,2]
[367312947,1750745437941,-589.57243154,0.00019145,2]
[367312949,1750745437950,-589.57243154,0.00019145,2]
[367312951,1750745437959,-589.57243154,0.00019145,2]
[367312953,1750745437968,-589.57243154,0.00019145,2]
[367312955,1750745437978,-589.57243154,0.00019145,2]
[367312957,1750745437987,-589.57243154,0.00019145,2]
[367312959,1750745437996,-589.57243154,0.00019145,2]
[367312961,1750745438006,-589.57243154,0.00019145,2]
[367312963,1750745438016,-345.15463994,0.00019145,2]
[367312965,1750745438028,-244.4177916,0.00019145,2]
[367312967,1750745438038,-257.14791453,0.00019145,2]
[367312970,1750745438053,-332.42451701,0.00019145,2]
[367312972,1750745438063,-388.50132272,0.00019145,2]
[367313441,1750745442861,-201.07110882,0.00019145,2]
[367313442,1750745442873,-589.57243154,0.00019145,2]
[367313443,1750745442887,-589.57243154,0.00019145,2]
[367313444,1750745442899,-589.57243154,0.00019145,2]
[367313447,1750745442910,-589.57243154,0.00019145,2]
[367313450,1750745442923,-406.56038539,0.00019178,2]
[367313452,1750745442934,-460.0,0.00019178,2]
[367313454,1750745442948,-460.0,0.00019178,2]
[367313457,1750745442959,-460.0,0.00019178,2]
[367313459,1750745442970,-747.36,0.00019178,2]
[367313461,1750745442982,-566.74,0.00019178,2]
[367313463,1750745442993,-460.0,0.00019178,2]
[367313465,1750745443004,-1026.6,0.00019178,2]
[367313467,1750745443015,-789.72,0.00019178,2]
[367313470,1750745443026,-460.0,0.00019178,2]
[367313472,1750745443037,-503.56,0.00019178,2]
[367313474,1750745443048,-1029.37,0.00019178,2]
[367313476,1750745443059,-460.0,0.00019178,2]
[367313478,1750745443071,-460.0,0.00019178,2]
[367313480,1750745443082,-460.0,0.00019178,2]
[367313483,1750745443093,-1324.31,0.00019178,2]
[367313485,1750745443104,-723.96,0.00019178,2]
[367313487,1750745443115,-460.0,0.00019178,2]
[367313489,1750745443126,-2959.29,0.00019178,2]
[367313491,1750745443137,-460.0,0.00019178,2]
[367313494,1750745443150,-460.0,0.00019178,2]
[367313496,1750745443162,-696.27,0.00019178,2]
[367313498,1750745443174,-433.21965183,0.00019178,2]
[367313501,1750745443187,-460.0,0.00019178,2]
[367313503,1750745443199,-1914.82,0.00019178,2]
[367313505,1750745443212,-424.98437819,0.00019178,2]
[367313507,1750745443224,-672.84,0.00019178,2]
[367313510,1750745443236,-1722.32,0.00019178,2]
[367313512,1750745443247,-460.0,0.00019178,2]
[367313514,1750745443259,-460.0,0.00019178,2]
[367313516,1750745443273,-817.05,0.00019178,2]
[367313518,1750745443284,-532.84,0.00019178,2]
[367313520,1750745443295,-306.14318545,0.00019178,2]
[367313522,1750745443308,-500.0,0.00019178,2]
[367313525,1750745443319,-644.80120466,0.00019178,2]
[367313527,1750745443330,-460.0,0.00019178,2]
[367313529,1750745443341,-461.0,0.00019178,2]
[367313532,1750745443353,-400.0,0.00019178,2]
[367313535,1750745443365,-460.0,0.00019178,2]
[367313539,1750745443376,-377.48391494,0.00019178,2]
[367313542,1750745443387,-1570.59,0.00019178,2]
[367313545,1750745443398,-469.26729,0.00019178,2]
[367313547,1750745443409,-29022.9130628,0.00019178,2]
[367313549,1750745443421,-809.0,0.00019245,2]
[367313551,1750745443432,-809.0,0.00019312,2]
[367313554,1750745443443,-809.0,0.00019313,2]
[367313556,1750745443454,-165.0,0.000194,4]
[367313558,1750745443465,-165.0,0.000194,4]
[367313560,1750745443477,-165.0,0.000194,5]
[367313562,1750745443488,-165.0,0.000194,5]
[367313565,1750745443500,-414.04737875,0.00019422,2]
[367313567,1750745443511,-535.87460576,0.00019452,2]
[367313569,1750745443523,-460.0,0.00019452,2]
[367313571,1750745443534,-460.0,0.00019452,2]
[367313573,1750745443545,-460.0,0.00019452,2]
[367313575,1750745443555,-270.0,0.00019452,2]
[367313577,1750745443564,-460.0,0.00019452,2]
[367313579,1750745443574,-460.0,0.00019452,2]
[367313581,1750745443583,-460.0,0.00019452,2]
[367313583,1750745443592,-460.0,0.00019452,2]
[367313585,1750745443601,-460.0,0.00019452,2]
[367313587,1750745443611,-460.0,0.00019452,2]
[367313589,1750745443620,-460.0,0.00019452,2]
[367313591,1750745443629,-446.29407522,0.00019452,2]
[367313593,1750745443639,-370.0,0.00019452,2]
[367313595,1750745443648,-460.0,0.00019452,2]
[367313597,1750745443657,-460.0,0.00019452,2]
[367313599,1750745443666,-460.0,0.00019452,2]
[367313601,1750745443675,-206.4654803,0.00019452,2]
[367313603,1750745443685,-460.0,0.00019452,2]
[367313605,1750745443694,-460.0,0.00019452,2]
[367313607,1750745443703,-492.33259041,0.00019452,2]
[367313629,1750745443899,-460.0,0.00019452,2]
[367313632,1750745443920,-460.0,0.00019452,2]
[367313634,1750745443931,-420.05826686,0.00019452,2]
[367313636,1750745443940,-460.0,0.00019452,2]
[367313638,1750745443949,-460.0,0.00019452,2]
[367313640,1750745443959,-460.0,0.00019452,2]
[367313642,1750745443968,-460.0,0.00019452,2]
[367313644,1750745443977,-460.0,0.00019452,2]
[367313646,1750745443987,-460.0,0.00019452,2]
[367313648,1750745443996,-544.2,0.00019452,2]
[367313650,1750745444005,-460.0,0.00019452,2]
[367313652,1750745444014,-430.0,0.00019452,2]
[367313653,1750745444023,-460.0,0.00019452,2]
[367313656,1750745444033,-460.0,0.00019452,2]
[367313657,1750745444043,-460.0,0.00019452,2]
[367313659,1750745444054,-460.0,0.00019452,2]
[367313661,1750745444063,-460.0,0.00019452,2]
[367313663,1750745444072,-555.98,0.00019452,2]
[367313665,1750745444081,-460.0,0.00019452,2]
[367313667,1750745444090,-460.0,0.00019452,2]
[367313669,1750745444099,-460.0,0.00019452,2]
[367313671,1750745444108,-208.567559,0.00019452,2]
[367313673,1750745444116,-280.86026549,0.00019452,2]
[367313675,1750745444126,-460.0,0.00019452,2]
[367313677,1750745444135,-589.55,0.00019452,2]
[367313679,1750745444143,-460.0,0.00019452,2]
[367313680,1750745444152,-437.92,0.00019452,2]
[367313682,1750745444161,-460.0,0.00019452,2]
[367313684,1750745444170,-460.0,0.00019452,2]
[367313686,1750745444179,-460.0,0.00019452,2]
[367313688,1750745444188,-336.80177257,0.00019452,2]
[367313690,1750745444197,-367.74408648,0.00019452,2]
[367313692,1750745444206,-274.58950516,0.00019452,2]
[367313694,1750745444215,-218.37041094,0.00019452,2]
[367313696,1750745444224,-460.0,0.00019452,2]
[367313698,1750745444233,-478.87,0.00019452,2]
[367313700,1750745444242,-460.0,0.00019452,2]
[367313701,1750745444251,-460.0,0.00019452,2]
[367313704,1750745444263,-460.0,0.00019452,2]
[367313705,1750745444272,-788.21,0.00019452,2]
[367313707,1750745444282,-1454.52,0.00019452,2]
[367313709,1750745444291,-460.0,0.00019452,2]
[367313711,1750745444301,-638.75,0.00019452,2]
[367313713,1750745444310,-594.77,0.00019452,2]
[367313715,1750745444319,-460.0,0.00019452,2]
[367313717,1750745444330,-460.0,0.00019452,2]
[367313719,1750745444339,-460.0,0.00019452,2]
[367313721,1750745444351,-460.0,0.00019452,2]
[367313723,1750745444360,-546.41,0.00019452,2]
[367313725,1750745444369,-460.0,0.00019452,2]
[367313727,1750745444378,-1609.04,0.00019452,2]
[367313729,1750745444387,-460.0,0.00019452,2]
[367313731,1750745444396,-460.0,0.00019452,2]
[367313733,1750745444406,-460.0,0.00019452,2]
[367313735,1750745444415,-583.13,0.00019452,2]
[367313737,1750745444424,-460.0,0.00019452,2]
[367313739,1750745444434,-1629.07,0.00019452,2]
[367313741,1750745444443,-460.0,0.00019452,2]
[367313743,1750745444452,-460.0,0.00019452,2]
[367313745,1750745444461,-460.0,0.00019452,2]
[367313747,1750745444470,-460.0,0.00019452,2]
[367313749,1750745444479,-1379.72,0.00019452,2]
[367313750,1750745444488,-460.0,0.00019452,2]
[367313752,1750745444498,-460.0,0.00019452,2]
[367313754,1750745444507,-575.12,0.00019452,2]
[367313756,1750745444515,-712.39,0.00019452,2]
[367313758,1750745444525,-460.0,0.00019452,2]
[367313760,1750745444534,-1318.93,0.00019452,2]
[367313762,1750745444543,-460.0,0.00019452,2]
[367313764,1750745444552,-1635.87,0.00019452,2]
[367313766,1750745444561,-655.9,0.00019452,2]
[367313768,1750745444570,-1218.31,0.00019452,2]
[367313770,1750745444580,-981.87,0.00019452,2]
[367313772,1750745444588,-677.35,0.00019452,2]
[367313774,1750745444598,-1632.49,0.00019452,2]
[367313776,1750745444607,-662.24,0.00019452,2]
[367313778,1750745444615,-2385.17,0.00019452,2]
[367313779,1750745444624,-687.59,0.00019452,2]
[367313781,1750745444634,-553.43,0.00019452,2]
[367313783,1750745444643,-460.0,0.00019452,2]
[367313785,1750745444652,-460.0,0.00019452,2]
[367313787,1750745444662,-460.0,0.00019452,2]
[367313789,1750745444671,-460.0,0.00019452,2]
[367313791,1750745444680,-460.0,0.00019452,2]
[367313793,1750745444690,-747.36,0.00019452,2]
[367313795,1750745444699,-1026.6,0.00019452,2]
[367313797,1750745444708,-789.72,0.00019452,2]
[367313799,1750745444718,-460.0,0.00019452,2]
[367313801,1750745444727,-503.56,0.00019452,2]
[367313803,1750745444736,-1029.37,0.00019452,2]
[367313805,1750745444745,-334.68525223,0.00019452,2]
[367313807,1750745444754,-1324.31,0.00019452,2]
[367313809,1750745444764,-723.96,0.00019452,2]
[367313811,1750745444773,-158.74614428,0.00019452,2]
[367313813,1750745444783,-2959.29,0.00019452,2]
[367313815,1750745444792,-460.0,0.00019452,2]
[367313817,1750745444801,-696.27,0.00019452,2]
[367313819,1750745444809,-1914.82,0.00019452,2]
[367313821,1750745444818,-672.84,0.00019452,2]
[367313822,1750745444827,-1722.32,0.00019452,2]
[367313824,1750745444836,-460.0,0.00019452,2]
[367313826,1750745444846,-817.05,0.00019452,2]
[367313828,1750745444857,-532.84,0.00019452,2]
[367313830,1750745444866,-460.0,0.00019452,2]
[367313832,1750745444876,-460.0,0.00019452,2]
[367313834,1750745444886,-1570.59,0.00019452,2]
[367313836,1750745444895,-160.0,0.00019469,2]
[367313838,1750745444905,-425.14181427,0.00019469,2]
[367313840,1750745444915,-836.80226758,0.00019469,2]
[367313842,1750745444924,-160.0,0.00019469,2]
[367313844,1750745444934,-846.68469334,0.00019469,2]
[367313846,1750745444943,-230.20892031,0.00019469,2]
[367313849,1750745444954,-12556.00642039,0.00019469,2]
[367313850,1750745444963,-213.66798275,0.00019469,2]
[367313852,1750745444972,-1790.74477616,0.00019475,2]
[367313854,1750745444981,-600.0,0.00019575,2]
[367313856,1750745444991,-365.8891638,0.000196,2]
[367313858,1750745445000,-809.0,0.00019673,2]
[367313860,1750745445009,-460.0,0.00019726,2]
[367313862,1750745445019,-460.0,0.00019726,2]
[367313864,1750745445028,-440.84100457,0.00019726,2]
[367313866,1750745445038,-460.0,0.00019726,2]
[367313868,1750745445047,-460.0,0.00019726,2]
[367313870,1750745445056,-460.0,0.00019726,2]
[367313872,1750745445065,-460.0,0.00019726,2]
[367313874,1750745445075,-460.0,0.00019726,2]
[367313876,1750745445084,-460.0,0.00019726,2]
[367313878,1750745445093,-460.0,0.00019726,2]
[367313880,1750745445102,-460.0,0.00019726,2]
[367313882,1750745445113,-460.0,0.00019726,2]
[367313884,1750745445122,-460.0,0.00019726,2]
[367313886,1750745445132,-460.0,0.00019726,2]
[367313888,1750745445141,-460.0,0.00019726,2]
[367313890,1750745445151,-460.0,0.00019726,2]
[367313892,1750745445160,-460.0,0.00019726,2]
[367313894,1750745445169,-460.0,0.00019726,2]
[367313896,1750745445179,-544.2,0.00019726,2]
[367313898,1750745445188,-460.0,0.00019726,2]
[367313900,1750745445197,-460.0,0.00019726,2]
[367313901,1750745445207,-460.0,0.00019726,2]
[367313902,1750745445216,-460.0,0.00019726,2]
[367313903,1750745445225,-460.0,0.00019726,2]
[367313904,1750745445234,-555.98,0.00019726,2]
[367313905,1750745445243,-460.0,0.00019726,2]
[367313906,1750745445253,-460.0,0.00019726,2]
[367313907,1750745445263,-460.0,0.00019726,2]
[367313908,1750745445276,-589.55,0.00019726,2]
[367313910,1750745445285,-460.0,0.00019726,2]
[367313912,1750745445294,-460.0,0.00019726,2]
[367313914,1750745445303,-460.0,0.00019726,2]
[367313916,1750745445313,-460.0,0.00019726,2]
[367313918,1750745445323,-478.87,0.00019726,2]
[367313920,1750745445332,-460.0,0.00019726,2]
[367313922,1750745445341,-460.0,0.00019726,2]
[367313924,1750745445350,-460.0,0.00019726,2]
[367313926,1750745445362,-788.21,0.00019726,2]
[367313928,1750745445371,-1454.52,0.00019726,2]
[367313930,1750745445380,-599.09,0.00019726,2]
[367313932,1750745445390,-638.75,0.00019726,2]
[367313934,1750745445399,-594.77,0.00019726,2]
[367313936,1750745445409,-460.0,0.00019726,2]
[367313938,1750745445418,-460.0,0.00019726,2]
[367313940,1750745445427,-432.08,0.00019726,2]
[367313942,1750745445437,-460.0,0.00019726,2]
[367313944,1750745445446,-546.41,0.00019726,2]
[367313946,1750745445456,-460.0,0.00019726,2]
[367313948,1750745445466,-1609.04,0.00019726,2]
[367313950,1750745445476,-460.0,0.00019726,2]
[367313952,1750745445486,-460.0,0.00019726,2]
[367313955,1750745445496,-583.13,0.00019726,2]
[367313957,1750745445505,-460.0,0.00019726,2]
[367313959,1750745445515,-1629.07,0.00019726,2]
[367313961,1750745445524,-460.0,0.00019726,2]
[367313962,1750745445533,-460.0,0.00019726,2]
[367313965,1750745445543,-460.0,0.00019726,2]
[367313966,1750745445552,-1379.72,0.00019726,2]
[367313968,1750745445562,-460.0,0.00019726,2]
[367313970,1750745445572,-460.0,0.00019726,2]
[367313972,1750745445581,-575.12,0.00019726,2]
[367313974,1750745445591,-712.39,0.00019726,2]
[367313976,1750745445600,-221.46,0.00019726,2]
[367313978,1750745445609,-1318.93,0.00019726,2]
[367313980,1750745445619,-460.0,0.00019726,2]
[367313982,1750745445629,-1635.87,0.00019726,2]
[367313984,1750745445639,-655.9,0.00019726,2]
[367313986,1750745445648,-1218.31,0.00019726,2]
[367313988,1750745445658,-981.87,0.00019726,2]
[367313990,1750745445668,-677.35,0.00019726,2]
[367313992,1750745445678,-1632.49,0.00019726,2]
[367313994,1750745445687,-662.24,0.00019726,2]
[367313996,1750745445696,-2385.17,0.00019726,2]
[367313998,1750745445705,-687.59,0.00019726,2]
[367314000,1750745445715,-553.43,0.00019726,2]
[367314002,1750745445724,-440.0,0.00019726,2]
[367314004,1750745445733,-202.41,0.00019726,2]
[367314006,1750745445743,-460.0,0.00019726,2]
[367314008,1750745445752,-460.0,0.00019726,2]
[367314010,1750745445761,-460.0,0.00019726,2]
[367314012,1750745445774,-747.36,0.00019726,2]
[367314014,1750745445784,-1026.6,0.00019726,2]
[367314016,1750745445795,-789.72,0.00019726,2]
[367314018,1750745445805,-460.0,0.00019726,2]
[367314020,1750745445815,-503.56,0.00019726,2]
[367314022,1750745445824,-1029.37,0.00019726,2]
[367314024,1750745445834,-1324.31,0.00019726,2]
[367314026,1750745445844,-723.96,0.00019726,2]
[367314028,1750745445853,-2959.29,0.00019726,2]
[367314030,1750745445864,-696.27,0.00019726,2]
[367314032,1750745445873,-1914.82,0.00019726,2]
[367314034,1750745445883,-672.84,0.00019726,2]
[367314037,1750745445893,-1722.32,0.00019726,2]
[367314039,1750745445902,-460.0,0.00019726,2]
[367314041,1750745445912,-817.05,0.00019726,2]
[367314042,1750745445922,-532.84,0.00019726,2]
[367314044,1750745445931,-460.0,0.00019726,2]
[367314047,1750745445941,-460.0,0.00019726,2]
[367314048,1750745445950,-1570.59,0.00019726,2]
[367314050,1750745445961,-414.04737875,0.00019754,2]
[367314053,1750745445971,-600.0,0.00019779,2]
[367314055,1750745445981,-151.0,0.000198,2]
[367314057,1750745445990,-369.37049044,0.00019833,2]
[367314059,1750745446001,-840.769447,0.00019851,2]
[367314062,1750745446010,-468.413,0.00019853,2]
[367314065,1750745446023,-2161.0,0.00019863,2]
[367314068,1750745446032,-654.0,0.00019863,2]
[367314071,1750745446042,-151.0,0.000199,2]
[367314074,1750745446051,-1790.74477612,0.00019924,2]
[367314077,1750745446061,-406.0,0.00019954,2]
[367314080,1750745446073,-406.0,0.00019954,2]
[367314083,1750745446083,-600.0,0.00019983,2]
[367314086,1750745446092,-460.0,0.0002,2]
[367314089,1750745446101,-460.0,0.0002,2]
[367314092,1750745446110,-419.51160971,0.0002,2]
[367314095,1750745446119,-460.0,0.0002,2]
[367314098,1750745446129,-460.0,0.0002,2]
[367314101,1750745446138,-460.0,0.0002,2]
[367314103,1750745446147,-460.0,0.0002,2]
[367314105,1750745446156,-606.56334353,0.0002,2]
[367314107,1750745446165,-460.0,0.0002,2]
[367314108,1750745446176,-460.0,0.0002,2]
[367314111,1750745446185,-460.0,0.0002,2]
[367314112,1750745446194,-460.0,0.0002,2]
[367314114,1750745446203,-460.0,0.0002,2]
[367314116,1750745446213,-460.0,0.0002,2]
[367314118,1750745446222,-460.0,0.0002,2]
[367314120,1750745446231,-460.0,0.0002,2]
[367314122,1750745446240,-544.2,0.0002,2]
[367314124,1750745446249,-460.0,0.0002,2]
[367314127,1750745446260,-460.0,0.0002,2]
[367314129,1750745446273,-410.66450834,0.0002,2]
[367314131,1750745446282,-460.0,0.0002,2]
[367314132,1750745446291,-512.54,0.0002,2]
[367314135,1750745446300,-555.98,0.0002,2]
[367314137,1750745446310,-460.0,0.0002,2]
[367314138,1750745446319,-460.0,0.0002,2]
[367314140,1750745446328,-460.0,0.0002,2]
[367314143,1750745446338,-589.55,0.0002,2]
[367314145,1750745446348,-460.0,0.0002,2]
[367314147,1750745446357,-460.0,0.0002,2]
[367314149,1750745446366,-478.87,0.0002,2]
[367314151,1750745446375,-460.0,0.0002,2]
[367314153,1750745446384,-460.0,0.0002,2]
[367314155,1750745446393,-788.21,0.0002,2]
[367314157,1750745446402,-1454.52,0.0002,2]
[367314159,1750745446412,-638.75,0.0002,2]
[367314161,1750745446421,-594.77,0.0002,2]
[367314163,1750745446429,-599.07,0.0002,2]
[367314165,1750745446438,-154.34,0.0002,2]
[367314167,1750745446447,-460.0,0.0002,2]
[367314169,1750745446457,-546.41,0.0002,2]
[367314171,1750745446466,-460.0,0.0002,2]
[367314173,1750745446475,-1609.04,0.0002,2]
[367314175,1750745446484,-460.0,0.0002,2]
[367314177,1750745446493,-460.0,0.0002,2]
[367314179,1750745446502,-583.13,0.0002,2]
[367314181,1750745446511,-460.0,0.0002,2]
[367314183,1750745446521,-1629.07,0.0002,2]
[367314184,1750745446530,-460.0,0.0002,2]
[367314186,1750745446539,-460.0,0.0002,2]
[367314188,1750745446549,-460.0,0.0002,2]
[367314191,1750745446559,-1379.72,0.0002,2]
[367314192,1750745446568,-460.0,0.0002,2]
[367314195,1750745446577,-460.0,0.0002,2]
[367314196,1750745446587,-575.12,0.0002,2]
[367314199,1750745446597,-712.39,0.0002,2]
[367314201,1750745446606,-1318.93,0.0002,2]
[367314203,1750745446615,-460.0,0.0002,2]
[367314205,1750745446626,-1635.87,0.0002,2]